fUSD/lending_fUSD_20250209
["ID","MTS","AMOUNT","RATE_DAILY","PERIOD"]
[352443174,1739110262600,-500.0,0.00011028,2]
[352443175,1739110262612,-560.49,0.00011028,2]
[352443176,1739110262621,-865.05,0.00011028,2]
[352443177,1739110262630,-534.32,0.00011028,2]
[352443178,1739110262639,-584.18,0.00011028,2]
[352443179,1739110262649,-561.91,0.00011028,2]
[352443180,1739110262658,-572.89,0.00011028,2]
[352443181,1739110262667,-843.45,0.00011028,2]
[352443182,1739110262676,-500.0,0.00011028,2]
[352443183,1739110262686,-565.45,0.00011028,2]
[352443184,1739110262695,-500.0,0.00011028,2]
[352443185,1739110262704,-619.19,0.00011028,2]
[352443186,1739110262714,-632.95,0.00011028,2]
[352443187,1739110262724,-659.31,0.00011028,2]
[352443188,1739110262733,-658.72,0.00011028,2]
[352443189,1739110262743,-804.67,0.00011028,2]
[352443190,1739110262752,-675.09,0.00011028,2]
[352443191,1739110262761,-768.98,0.00011028,2]
[352443192,1739110262771,-574.59,0.00011028,2]
[352443193,1739110262781,-1000.0,0.00011028,2]
[352443194,1739110262794,-785.54,0.00011028,2]
[352443195,1739110262804,-706.79,0.00011028,2]
[352443196,1739110262813,-520.91,0.00011028,2]
[352443197,1739110262823,-500.0,0.00011028,2]
[352443198,1739110262833,-687.12,0.00011028,2]
[352443199,1739110262843,-500.0,0.00011028,2]
[352443200,1739110262853,-500.0,0.00011028,2]
[352443201,1739110262863,-500.0,0.00011028,2]
[352443202,1739110262874,-814.05,0.00011028,2]
[352443203,1739110262884,-500.0,0.00011028,2]
[352443204,1739110262894,-500.0,0.00011028,2]
[352443205,1739110262904,-500.0,0.00011028,2]
[352443206,1739110262914,-623.38,0.00011028,2]
[352443207,1739110262925,-795.3,0.00011028,2]
[352443208,1739110262941,-500.0,0.00011028,2]
[352443209,1739110262951,-624.53,0.00011029,2]
[352443210,1739110262960,-500.0,0.00011029,2]
[352443211,1739110262970,-500.0,0.00011029,2]
[352443212,1739110262980,-500.0,0.00011029,2]
[352443213,1739110262991,-423.07818714,0.00011029,2]
[352443214,1739110263000,-500.0,0.00011029,2]
[352443215,1739110263010,-500.0,0.00011029,2]
[352443216,1739110263020,-500.0,0.00011029,2]
[352443217,1739110263030,-500.0,0.00011029,2]
[352443218,1739110263043,-500.0,0.00011029,2]
[352443219,1739110263053,-500.0,0.00011029,2]
[352443220,1739110263067,-157.26761477,0.00011029,2]
[352443221,1739110263077,-500.0,0.00011029,2]
[352443222,1739110263087,-853.06,0.00011029,2]
[352443223,1739110263096,-504.37204558,0.00011029,2]
[352443224,1739110263107,-500.0,0.00011029,2]
[352443225,1739110263117,-500.0,0.00011029,2]
[352443226,1739110263126,-500.0,0.00011029,2]
[352443227,1739110263137,-500.0,0.00011029,2]
[352443228,1739110263146,-500.0,0.00011029,2]
[352443229,1739110263157,-500.0,0.00011029,2]
[352443230,1739110263167,-500.0,0.00011029,2]
[352443231,1739110263177,-500.0,0.00011029,2]
[352443232,1739110263187,-500.0,0.00011029,2]
[352443233,1739110263197,-500.0,0.00011029,2]
[352443234,1739110263207,-500.0,0.00011029,2]
[352443235,1739110263217,-500.0,0.00011029,2]
[352443236,1739110263227,-500.0,0.00011029,2]
[352443237,1739110263237,-500.0,0.00011029,2]
[352443238,1739110263246,-500.0,0.00011029,2]
[352443239,1739110263255,-500.0,0.00011029,2]
[352443240,1739110263265,-500.0,0.00011029,2]
[352443241,1739110263274,-500.0,0.00011029,2]
[352443242,1739110263283,-500.0,0.00011029,2]
[352443243,1739110263294,-929.96,0.00011029,2]
[352443244,1739110263304,-500.0,0.00011029,2]
[352443245,1739110263313,-500.0,0.00011029,2]
[352443246,1739110263323,-500.0,0.00011029,2]
[352443247,1739110263333,-500.0,0.00011029,2]
[352443248,1739110263342,-553.844768,0.00011029,2]
[352443249,1739110263351,-175.23,0.00011029,2]
[352443250,1739110263361,-500.0,0.00011029,2]
[352443251,1739110263371,-635.626125,0.00011029,2]
[352443252,1739110263380,-500.0,0.00011029,2]
[352443253,1739110263390,-500.0,0.00011029,2]
[352443254,1739110263400,-500.0,0.00011029,2]
[352443255,1739110263409,-500.0,0.00011029,2]
[352443256,1739110263419,-500.0,0.00011029,2]
[352443257,1739110263428,-500.0,0.00011029,2]
[352443258,1739110263438,-490.83874254,0.00011029,2]
[352443259,1739110263447,-500.0,0.00011029,2]
[352443260,1739110263456,-500.0,0.00011029,2]
[352443261,1739110263466,-500.0,0.00011029,2]
[352443262,1739110263476,-500.0,0.00011029,2]
[352443263,1739110263485,-500.0,0.00011029,2]
[352443264,1739110263495,-500.0,0.00011029,2]
[352443265,1739110263504,-500.0,0.00011029,2]
[352443266,1739110263514,-500.0,0.00011029,2]
[352443267,1739110263523,-580.19,0.00011029,2]
[352443268,1739110263533,-500.0,0.00011029,2]
[352443269,1739110263547,-592.87592365,0.00011029,2]
[352443270,1739110263557,-500.0,0.00011029,2]
[352443271,1739110263566,-500.0,0.00011029,2]
[352443272,1739110263576,-500.0,0.00011029,2]
[352443273,1739110263585,-500.0,0.00011029,2]
[352443274,1739110263596,-500.0,0.00011029,2]
[352443275,1739110263606,-500.0,0.00011029,2]
[352443276,1739110263617,-500.0,0.00011029,2]
[352443277,1739110263627,-227.44889192,0.00011029,2]
[352443278,1739110263637,-536.8,0.00011029,2]
[352443279,1739110263647,-500.0,0.00011029,2]
[352443280,1739110263657,-500.0,0.00011029,2]
[352443281,1739110263666,-500.0,0.00011029,2]
[352443282,1739110263676,-516.69381911,0.00011029,2]
[352443283,1739110263686,-500.0,0.00011029,2]
[352443284,1739110263697,-500.0,0.00011029,2]
[352443285,1739110263706,-500.0,0.00011029,2]
[352443286,1739110263716,-500.0,0.00011029,2]
[352443287,1739110263726,-241.26,0.00011029,2]
[352443288,1739110263736,-500.0,0.00011029,2]
[352443289,1739110263746,-500.0,0.00011029,2]
[352443290,1739110263755,-500.0,0.00011029,2]
[352443291,1739110263765,-618.54,0.00011029,2]
[352443292,1739110263775,-500.0,0.00011029,2]
[352443293,1739110263787,-500.0,0.00011029,2]
[352443294,1739110263798,-500.0,0.00011029,2]
[352443295,1739110263808,-500.0,0.00011029,2]
[352443296,1739110263818,-500.0,0.00011029,2]
[352443297,1739110263828,-500.0,0.00011029,2]
[352443298,1739110263838,-295.56787856,0.00011029,2]
[352443299,1739110263848,-500.0,0.00011029,2]
[352443300,1739110263858,-750.53,0.00011029,2]
[352443301,1739110263868,-500.0,0.00011029,2]
[352443302,1739110263878,-500.0,0.00011029,2]
[352443303,1739110263889,-500.0,0.00011029,2]
[352443304,1739110263899,-500.0,0.00011029,2]
[352443305,1739110263909,-500.0,0.00011029,2]
[352443306,1739110263919,-500.0,0.00011029,2]
[352443307,1739110263929,-500.0,0.00011029,2]
[352443308,1739110263939,-646.52310074,0.00011029,2]
[352443309,1739110263950,-500.0,0.00011029,2]
[352443310,1739110264105,-511.54,0.00011029,2]
[352443311,1739110264150,-500.0,0.00011029,2]
[352443312,1739110264161,-500.0,0.00011029,2]
[352443313,1739110264171,-500.0,0.00011029,2]
[352443314,1739110264181,-500.0,0.00011029,2]
[352443315,1739110264190,-275.01902711,0.00011029,2]
[352443316,1739110264200,-176.52912283,0.00011029,2]
[352443317,1739110264209,-537.48,0.00011029,2]
[352443318,1739110264219,-500.0,0.00011029,2]
[352443319,1739110264229,-615.71277746,0.00011029,2]
[352443320,1739110264239,-966.53,0.00011029,2]
[352443321,1739110264248,-529.3,0.00011029,2]
[352443322,1739110264258,-966.53,0.00011029,2]
[352443323,1739110264268,-966.53,0.00011029,2]
[352443324,1739110264278,-966.53,0.00011029,2]
[352443325,1739110264288,-966.53,0.00011029,2]
[352443326,1739110264298,-966.53,0.00011029,2]
[352443327,1739110264308,-966.53,0.00011029,2]
[352443328,1739110264319,-966.53,0.00011029,2]
[352443329,1739110264329,-966.53,0.00011029,2]
[352443330,1739110264339,-966.53,0.00011029,2]
[352443331,1739110264349,-966.53,0.00011029,2]
[352443332,1739110264359,-966.53,0.00011029,2]
[352443333,1739110264369,-966.53,0.00011029,2]
[352443334,1739110264379,-966.53,0.00011029,2]
[352443335,1739110264389,-966.53,0.00011029,2]
[352443336,1739110264399,-966.53,0.00011029,2]
[352443337,1739110264409,-966.53,0.00011029,2]
[352443338,1739110264419,-966.53,0.00011029,2]
[352443339,1739110264428,-966.53,0.00011029,2]
[352443340,1739110264438,-966.53,0.00011029,2]
[352443341,1739110264447,-966.53,0.00011029,2]
[352443342,1739110264457,-966.72834086,0.00011029,2]
[352443343,1739110264466,-500.0,0.00011029,2]
[352443344,1739110264476,-500.0,0.00011029,2]
[352443345,1739110264485,-500.0,0.00011029,2]
[352443346,1739110264495,-579.4,0.00011029,2]
[352443347,1739110264504,-500.0,0.00011029,2]
[352443348,1739110264514,-500.0,0.00011029,2]
[352443349,1739110264524,-500.0,0.00011029,2]
[352443350,1739110264533,-650.25,0.00011029,2]
[352443351,1739110264547,-1010.83,0.00011029,2]
[352443352,1739110264556,-500.0,0.00011029,2]
[352443353,1739110264566,-500.0,0.00011029,2]
[352443354,1739110264579,-500.0,0.00011029,2]
[352443355,1739110264593,-500.0,0.00011029,2]
[352443356,1739110264604,-510.41,0.00011029,2]
[352443357,1739110264614,-500.0,0.00011029,2]
[352443358,1739110264626,-500.0,0.00011029,2]
[352443359,1739110264638,-517.98,0.00011029,2]
[352443360,1739110264647,-542.77,0.00011029,2]
[352443361,1739110264657,-500.0,0.00011029,2]
[352443362,1739110264666,-500.0,0.00011029,2]
[352443363,1739110264676,-500.0,0.00011029,2]
[352443364,1739110264685,-1002.29,0.00011029,2]
[352443365,1739110264694,-500.0,0.00011029,2]
[352443366,1739110264704,-348.36646939,0.00011029,2]
[352443367,1739110264713,-589.62750801,0.00011029,2]
[352443368,1739110264723,-500.0,0.00011029,2]
[352443369,1739110264732,-696.68,0.00011029,2]
[352443370,1739110264741,-963.94,0.00011029,2]
[352443371,1739110264750,-570.7,0.00011029,2]
[352443372,1739110264760,-500.0,0.00011029,2]
[352443373,1739110264769,-925.9,0.00011029,2]
[352443374,1739110264780,-707.28,0.00011029,2]
[352443375,1739110264791,-2690.19,0.00011029,2]
[352443376,1739110264800,-500.0,0.00011029,2]
[352443377,1739110264810,-816.13,0.00011029,2]
[352443378,1739110264819,-665.62,0.00011029,2]
[352443379,1739110264828,-1133.06,0.00011029,2]
[352443380,1739110264837,-500.0,0.00011029,2]
[352443381,1739110264847,-691.68,0.00011029,2]
[352443382,1739110264856,-500.0,0.00011029,2]
[352443383,1739110264865,-500.0,0.00011029,2]
[352443384,1739110264874,-682.77,0.00011029,2]
[352443385,1739110264884,-1660.92,0.00011029,2]
[352443386,1739110264895,-500.0,0.00011029,2]
[352443387,1739110264904,-500.0,0.00011029,2]
[352443388,1739110264913,-299.91,0.00011029,2]
[352443389,1739110264923,-557.49,0.00011029,2]
[352443390,1739110264932,-721.46,0.00011029,2]
[352443391,1739110264941,-500.0,0.00011029,2]
[352443392,1739110264950,-500.0,0.00011029,2]
[352443393,1739110264960,-500.0,0.00011029,2]
[352443394,1739110264969,-589.36,0.00011029,2]
[352443395,1739110264978,-678.09,0.00011029,2]
[352443396,1739110264987,-1004.28,0.00011029,2]
[352443397,1739110264997,-507.47111046,0.00011029,2]
[352443398,1739110265006,-500.0,0.00011029,2]
[352443399,1739110265016,-500.0,0.00011029,2]
[352443400,1739110265026,-500.0,0.00011029,2]
[352443401,1739110265037,-500.0,0.00011029,2]
[352443402,1739110265047,-877.14,0.00011029,2]
[352443403,1739110265057,-500.0,0.00011029,2]
[352443404,1739110265071,-539.37,0.00011029,2]
[352443405,1739110265080,-500.0,0.00011029,2]
[352443406,1739110265090,-500.0,0.00011029,2]
[352443407,1739110265099,-1463.57,0.00011029,2]
[352443408,1739110265110,-500.0,0.00011029,2]
[352443409,1739110265119,-500.0,0.00011029,2]
[352443410,1739110265129,-500.0,0.00011029,2]
[352443411,1739110265139,-524.32,0.00011029,2]
[352443412,1739110265149,-500.0,0.00011029,2]
[352443413,1739110265158,-673.31,0.00011029,2]
[352443414,1739110265167,-753.41,0.00011029,2]
[352443415,1739110265176,-572.02,0.00011029,2]
[352443416,1739110265186,-500.0,0.00011029,2]
[352443417,1739110265195,-500.0,0.00011029,2]
[352443418,1739110265205,-500.0,0.00011029,2]
[352443419,1739110265214,-914.39,0.00011029,2]
[352443420,1739110265224,-500.0,0.00011029,2]
[352443421,1739110265234,-500.0,0.00011029,2]
[352443422,1739110265243,-588.77,0.00011029,2]
[352443423,1739110265253,-520.19,0.00011029,2]
[352443424,1739110265263,-500.0,0.00011029,2]
[352443425,1739110265273,-500.0,0.00011029,2]
[352443426,1739110265282,-728.3,0.00011029,2]
[352443427,1739110265293,-606.95,0.00011029,2]
[352443428,1739110265303,-500.0,0.00011029,2]
[352443429,1739110265313,-912.25,0.00011029,2]
[352443430,1739110265323,-500.0,0.00011029,2]
[352443431,1739110265333,-500.0,0.00011029,2]
[352443432,1739110265343,-500.0,0.00011029,2]
[352443433,1739110265352,-558.53,0.00011029,2]
[352443434,1739110265361,-500.0,0.00011029,2]
[352443435,1739110265371,-500.0,0.0001103,2]
[352443436,1739110265380,-500.0,0.0001103,2]
[352443437,1739110265390,-500.0,0.0001103,2]
[352443438,1739110265399,-500.0,0.0001103,2]
[352443439,1739110265408,-500.0,0.0001103,2]
[352443440,1739110265417,-500.0,0.0001103,2]
[352443441,1739110265427,-500.0,0.0001103,2]
[352443442,1739110265436,-500.0,0.0001103,2]
[352443443,1739110265446,-2608.0,0.0001109,2]
[352443444,1739110265456,-224.88860302,0.00011096,2]
[352443445,1739110265467,-164.3861396,0.00011099,2]
[352443446,1739110265476,-183.07762286,0.00011099,2]
[352443447,1739110265486,-151.9,0.0001112,2]
[352443448,1739110265495,-150.0,0.00011124,2]
[352443449,1739110265505,-522.37,0.00011165,2]
[352443450,1739110265515,-819.55,0.00011165,2]
[352443451,1739110265525,-978.83,0.00011165,2]
[352443452,1739110265534,-697.85,0.00011165,2]
[352443453,1739110265545,-1505.73,0.00011165,2]
[352443454,1739110265554,-500.0,0.00011165,2]
[352443455,1739110265563,-658.11,0.00011165,2]
[352443456,1739110265573,-500.0,0.00011165,2]
[352443457,1739110265582,-500.0,0.00011165,2]
[352443458,1739110265592,-958.54,0.00011165,2]
[352443459,1739110265601,-500.0,0.00011165,2]
[352443460,1739110265610,-560.49,0.00011165,2]
[352443461,1739110265620,-865.05,0.00011165,2]
[352443462,1739110265629,-534.32,0.00011165,2]
[352443463,1739110265638,-584.18,0.00011165,2]
[352443464,1739110265648,-561.91,0.00011165,2]
[352443465,1739110265658,-572.89,0.00011165,2]
[352443466,1739110265667,-843.45,0.00011165,2]
[352443467,1739110265676,-500.0,0.00011165,2]
[352443468,1739110265685,-565.45,0.00011165,2]
[352443469,1739110265694,-482.21008062,0.00011165,2]
[352443470,1739110265704,-619.19,0.00011165,2]
[352443471,1739110265714,-632.95,0.00011165,2]
[352443472,1739110265724,-659.31,0.00011165,2]
[352443473,1739110265734,-658.72,0.00011165,2]
[352443474,1739110265743,-804.67,0.00011165,2]
[352443475,1739110265753,-675.09,0.00011165,2]
[352443476,1739110265762,-768.98,0.00011165,2]
[352443477,1739110265771,-574.59,0.00011165,2]
[352443478,1739110265781,-1000.0,0.00011165,2]
[352443479,1739110265791,-785.54,0.00011165,2]
[352443480,1739110265801,-706.79,0.00011165,2]
[352443481,1739110265810,-520.91,0.00011165,2]
[352443482,1739110265820,-500.0,0.00011165,2]
[352443483,1739110265829,-687.12,0.00011165,2]
[352443484,1739110265838,-500.0,0.00011165,2]
[352443485,1739110265848,-500.0,0.00011165,2]
[352443486,1739110265858,-500.0,0.00011165,2]
[352443487,1739110265868,-814.05,0.00011165,2]
[352443488,1739110265877,-212.04,0.00011165,2]
[352443489,1739110265887,-500.0,0.00011165,2]
[352443490,1739110265898,-500.0,0.00011165,2]
[352443491,1739110265908,-623.38,0.00011165,2]
[352443492,1739110265918,-795.3,0.00011165,2]
[352443493,1739110265927,-500.0,0.00011165,2]
[352443494,1739110265937,-561.09651735,0.00011166,2]
[352443495,1739110265947,-500.0,0.00011166,2]
[352443496,1739110265958,-500.0,0.00011166,2]
[352443497,1739110265967,-500.0,0.00011166,2]
[352443498,1739110265976,-500.0,0.00011166,2]
[352443499,1739110265986,-500.0,0.00011166,2]
[352443500,1739110265995,-500.0,0.00011166,2]
[352443501,1739110266005,-500.0,0.00011166,2]
[352443502,1739110266014,-500.0,0.00011166,2]
[352443503,1739110266024,-853.06,0.00011166,2]
[352443504,1739110266033,-500.0,0.00011166,2]
[352443505,1739110266044,-500.0,0.00011166,2]
[352443506,1739110266054,-500.0,0.00011166,2]
[352443507,1739110266065,-1000.0,0.00011166,2]
[352443508,1739110266077,-500.0,0.00011166,2]
[352443509,1739110266087,-500.0,0.00011166,2]
[352443510,1739110266097,-500.0,0.00011166,2]
[352443511,1739110266109,-500.0,0.00011166,2]
[352443512,1739110266118,-500.0,0.00011166,2]
[352443513,1739110266128,-500.0,0.00011166,2]
[352443514,1739110266140,-8.31389267,0.00011166,2]
[352443515,1739110266426,-491.68610733,0.00011166,2]
[352443516,1739110266436,-500.0,0.00011166,2]
[352443517,1739110266445,-500.0,0.00011166,2]
[352443518,1739110266455,-500.0,0.00011166,2]
[352443519,1739110266464,-500.0,0.00011166,2]
[352443520,1739110266474,-500.0,0.00011166,2]
[352443521,1739110266484,-500.0,0.00011166,2]
[352443522,1739110266493,-500.0,0.00011166,2]
[352443523,1739110266504,-500.0,0.00011166,2]
[352443524,1739110266513,-929.96,0.00011166,2]
[352443525,1739110266524,-500.0,0.00011166,2]
[352443526,1739110266533,-225.9007989,0.00011166,2]
[352443527,1739110267042,-1256.449,8.973e-05,2]
[352443528,1739110267052,-500.0,0.00010617,2]
[352443529,1739110267062,-517.8,0.00010617,2]
[352443530,1739110267075,-500.0,0.00010618,2]
[352443531,1739110267085,-500.0,0.00010754,2]
[352443532,1739110267093,-517.8,0.00010754,2]
[352443533,1739110267102,-500.0,0.00010755,2]
[352443534,1739110267112,-500.0,0.00010755,2]
[352443535,1739110267121,-500.0,0.00010891,2]
[352443536,1739110267130,-58.54352422,0.00011028,2]
[352443537,1739110267152,-376.87925389,0.00010891,2]
[352443538,1739110267258,-140.92074611,0.00010891,2]
[352443539,1739110267268,-219.16159953,0.00011028,2]
[352443540,1739110267279,-222.29487625,0.00011028,2]
[352443541,1739110267289,-500.0,0.00011165,2]
[352443542,1739110267298,-274.0992011,0.00011166,2]
[352443543,1739110267307,-500.0,0.00011166,2]
[352443544,1739110267318,-500.0,0.00011166,2]
[352443545,1739110267327,-250.97456357,0.00011166,2]
[352443557,1739111411829,-399.76,8.219e-05,2]
[352443558,1739111411852,-345.59,8.555e-05,2]
[352443559,1739111411875,-300.0,8.835e-05,2]
[352443560,1739111411897,-4697.6062,8.836e-05,2]
[352443561,1739111411919,-1782.7066,8.836e-05,2]
[352443562,1739111411942,-780.5122,8.973e-05,2]
[352443563,1739111411964,-1693.825,8.973e-05,2]
[352443564,1739111415713,-3306.175,8.973e-05,2]
[352443574,1739111432488,-214.19,9.336e-05,2]
[352443575,1739111432499,-214.19,9.338e-05,2]
[352443576,1739111432508,-214.19,9.341e-05,2]
[352443577,1739111432517,-214.19,9.343e-05,2]
[352443578,1739111432526,-214.19,9.346e-05,2]
[352443579,1739111432535,-214.19,9.348e-05,2]
[352443580,1739111432544,-214.19,9.351e-05,2]
[352443581,1739111432553,-214.19,9.353e-05,2]
[352443582,1739111432566,-214.19,9.356e-05,2]
[352443583,1739111432574,-214.19,9.358e-05,2]
[352443584,1739111432583,-214.19,9.361e-05,2]
[352443585,1739111432593,-214.19,9.363e-05,2]
[352443586,1739111432601,-214.19,9.365e-05,2]
[352443587,1739111432611,-214.19,9.368e-05,2]
[352443588,1739111432620,-214.19,9.37e-05,2]
[352443589,1739111432630,-214.19,9.373e-05,2]
[352443590,1739111432639,-214.19,9.375e-05,2]
[352443591,1739111432648,-214.19,9.378e-05,2]
[352443592,1739111432657,-214.19,9.38e-05,2]
[352443593,1739111432666,-335.56,9.38e-05,3]
[352443594,1739111432675,-214.19,9.383e-05,2]
[352443595,1739111432684,-150.0,9.383e-05,2]
[352443596,1739111432693,-389.43,9.429e-05,2]
[352443597,1739111432702,-500.0,9.562e-05,2]
[352443598,1739111432711,-1000.0,9.672e-05,2]
[352443599,1739111432720,-250.0,9.774e-05,2]
[352443600,1739111432729,-953.41593514,9.829e-05,2]
[352443601,1739111432740,-1019.0858085,9.829e-05,2]
[352443602,1739111432751,-27.49825636,9.829e-05,2]
[352443603,1739111432761,-171.66,9.941e-05,2]
[352443604,1739111432770,-500.0,9.999e-05,2]
[352443605,1739111432779,-23.08109429,9.999e-05,2]
[352443606,1739111432797,-476.91890571,9.999e-05,2]
[352443607,1739111432806,-433.39723599,9.999e-05,2]
[352443608,1739111432816,-500.0,9.999e-05,2]
[352443609,1739111432825,-500.0,9.999e-05,2]
[352443610,1739111432834,-500.0,9.999e-05,2]
[352443611,1739111432843,-500.0,9.999e-05,2]
[352443612,1739111432853,-500.0,9.999e-05,2]
[352443613,1739111432862,-500.0,9.999e-05,2]
[352443614,1739111432871,-492.44146895,9.999e-05,2]
[352443615,1739111432881,-500.0,9.999e-05,2]
[352443616,1739111432890,-500.0,9.999e-05,2]
[352443617,1739111432899,-197.08638641,9.999e-05,2]
[352443618,1739111432909,-286.02,0.0001,2]
[352443619,1739111432918,-20712.66991174,0.0001,2]
[352443620,1739111432930,-418.32812848,0.0001,2]
[352443622,1739111432980,-17728.37516826,0.0001,2]
[352443623,1739111432991,-8258.9073629,0.0001,2]
[352443627,1739111438382,-500.0,9.999e-05,2]
[352443628,1739111438392,-604.8,9.999e-05,2]
[352443629,1739111438402,-500.0,9.999e-05,2]
[352443630,1739111438411,-172.96391934,0.0001,2]
[352443631,1739111438480,-15381.34440603,0.0001,2]
[352443632,1739111438492,-6642.40287837,0.0001,2]
[352443633,1739111438502,-46053.83783763,0.0001,2]
[352443634,1739111438575,-11851.43999999,0.0001,2]
[352443635,1739111438586,-4015.08096531,0.0001,2]
[352443636,1739111438598,-13502.29935771,0.0001,2]
[352443722,1739111440533,-500.0,9.999e-05,2]
[352443723,1739111440543,-472185.00759615,0.0001,2]
[352443724,1739111440553,-1051.9066077,0.0001,2]
[352443725,1739111440562,-150.0,0.00010134,2]
[352443726,1739111440574,-500.0,0.00010136,2]
[352443727,1739111440583,-500.0,0.00010136,2]
[352443728,1739111440593,-500.0,0.00010136,2]
[352443729,1739111440602,-500.0,0.00010136,2]
[352443730,1739111440611,-196.11855987,0.00010136,2]
[352443731,1739111440620,-500.0,0.00010136,2]
[352443732,1739111440630,-500.0,0.00010136,2]
[352443733,1739111440639,-500.0,0.00010136,2]
[352443734,1739111440649,-185.84,0.00010137,2]
[352443735,1739111440658,-353.32,0.00010137,2]
[352443736,1739111440668,-371.44,0.00010195,2]
[352443737,1739111440678,-109285.92065837,0.000102,2]
[352443738,1739111440687,-500.0,0.00010216,2]
[352443739,1739111440697,-369.42,0.00010242,2]
[352443740,1739111440706,-150.0,0.00010257,2]
[352443741,1739111440715,-500.0,0.00010273,2]
[352443742,1739111440724,-500.0,0.00010273,2]
[352443743,1739111440733,-500.0,0.00010273,2]
[352443744,1739111440743,-370.31,0.00010295,2]
[352443745,1739111440752,-255.0,0.00010321,2]
[352443746,1739111440761,-1416.0,0.00010353,2]
[352443747,1739111440770,-150.0,0.00010354,2]
[352443748,1739111440781,-382.29,0.00010372,2]
[352443749,1739111440790,-500.0,0.00010382,2]
[352443750,1739111440799,-500.0,0.0001041,2]
[352443751,1739111440809,-587.5813252,0.0001041,2]
[352443752,1739111440819,-500.0,0.0001041,2]
[352443753,1739111440829,-399.76,0.00010449,2]
[352443754,1739111440838,-150.0,0.00010462,2]
[352443755,1739111440848,-541.96067873,0.00010475,2]
[352443756,1739111440857,-378.6,0.00010487,2]
[352443757,1739111440866,-150.0,0.00010512,2]
[352443758,1739111440876,-500.0,0.00010547,2]
[352443759,1739111440886,-389.43,0.00010608,2]
[352443760,1739111440895,-500.0,0.00010616,2]
[352443761,1739111440905,-811.17,0.00010616,2]
[352443762,1739111440917,-500.0,0.00010616,2]
[352443763,1739111440926,-500.0,0.00010616,2]
[352443764,1739111440935,-500.0,0.00010616,2]
[352443765,1739111440945,-500.0,0.00010616,2]
[352443766,1739111440955,-500.0,0.00010616,2]
[352443767,1739111440964,-705.66,0.00010616,2]
[352443768,1739111440975,-500.0,0.00010616,2]
[352443769,1739111440984,-500.0,0.00010616,2]
[352443770,1739111440995,-500.0,0.00010616,2]
[352443771,1739111441005,-542.86,0.00010616,2]
[352443772,1739111441015,-500.0,0.00010616,2]
[352443773,1739111441025,-521.92,0.00010616,2]
[352443774,1739111441034,-542.32,0.00010616,2]
[352443775,1739111441044,-555.28,0.00010616,2]
[352443776,1739111441054,-500.0,0.00010616,2]
[352443777,1739111441065,-500.0,0.00010616,2]
[352443778,1739111441085,-500.0,0.00010616,2]
[352443779,1739111441095,-500.0,0.00010616,2]
[352443780,1739111441104,-500.0,0.00010616,2]
[352443781,1739111441114,-595.16,0.00010616,2]
[352443782,1739111441124,-500.0,0.00010616,2]